[Event "Benidorm Open-A 2022"]
[Site "Benidorm"]
[Date "2022.12.06"]
[Round "4.24"]
[White "Slagboom, Leandro"]
[Black "Perez Candelario, Matias"]
[Result "1-0"]
[ECO "B01"]
[WhiteElo "2147"]
[BlackElo "2009"]
[Annotator "TA"]
[PlyCount "39"]
[EventDate "2022.12.03"]
[EventType "swiss"]
[EventCountry "ESP"]
[SourceTitle "playchess.com"]
[Source "ChessBase"]
[SourceQuality "1"]
[TimeControl "5400+30"]

{[%evp 9,39,43,60,48,96,79,147,160,168,55,193,213,221,235,210,215,303,231,304,314,443,395,829,848,1589,1523,2391,2316,29990,29990,29990,29991]} 1. e4 d5 2. exd5 Qxd5 3. Nc3 Qa5 4. d4 c6 5. Bd2 Qc7 6. Nf3 {B01: Scandinavian Defence.} Bg4 (6... Nf6 $14 {deserves consideration.}) 7. h3 $16 {[%cal Bh2h3,Bh3h4][%mdl 32]} Bh5 ({Better is} 7... Bxf3 8. Qxf3 e6) 8. g4 $1 {White is more active. White is clearly better.} Bg6 {[#]} 9. Ne5 (9. h4 $1 $18 {[%cal Rh4h5] Strongly threatening h5.} h5 10. Ne5) 9... e6 {[#] Loses the game.} ({Black should play} 9... Nd7 $14) 10. h4 $1 $18 {Hoping for h5.} f6 {Inhibits h5.} 11. Nxg6 hxg6 12. Bd3 {[#]} g5 $146 (12... Bb4 {was called for.} 13. Qe2 (13. Bxg6+ Kd7 $18) 13... Bxc3) ({Predecessor:} 12... Ne7 13. Qe2 Qd6 14. O-O-O Nd7 15. Bc4 e5 16. Ne4 Qc7 17. Bc3 O-O-O 18. dxe5 Nxe5 19. Rxd8+ Qxd8 {1-0 (36) Yapa Bandara,C (1592)-Dilanya,W (1215) Narahenpita 2017}) 13. Bg6+ Kd7 14. Qe2 gxh4 (14... Bb4 $142 15. O-O-O (15. Bf7 Qd6 $16) 15... Bxc3) 15. O-O-O {[%cal Od4d5]} ({Weaker is} 15. Bf7 Kd8 $18) 15... Bb4 $2 {Against d5} (15... Ne7) 16. d5 e5 17. dxc6+ {[%mdl 64] Remove Defender} bxc6 {[#]} 18. Nb5 $1 {[%mdl 576]} cxb5 (18... Kc8 19. Bf5+) 19. Bxb4+ {This pair of bishops is nice.} Kc8 20. Bf5+ {Weighted Error Value: White=0.13 (very precise) /Black=1.27} 1-0

[Event "Benidorm Open-A 2022"]
[Site "Benidorm"]
[Date "2022.12.06"]
[Round "4.25"]
[White "Roe, Simon J"]
[Black "Perez Ruiz, Santiago"]
[Result "1-0"]
[ECO "E69"]
[WhiteElo "2146"]
[BlackElo "1966"]
[Annotator "TA"]
[PlyCount "65"]
[EventDate "2022.12.03"]
[EventType "swiss"]
[EventCountry "ESP"]
[SourceTitle "playchess.com"]
[Source "ChessBase"]
[SourceQuality "1"]
[TimeControl "5400+30"]

{[%evp 21,65,58,49,49,127,68,161,153,141,109,198,110,104,73,83,81,142,155,201,193,399,390,585,567,793,704,701,691,700,684,687,680,698,683,700,689,961,957,1566,1535,1392,1529,1529,1328,29991,1439]} 1. c4 Nf6 2. Nf3 g6 3. g3 d6 4. d4 Bg7 5. Bg2 O-O 6. Nc3 c6 7. O-O Nbd7 8. e4 e5 9. h3 Re8 10. Be3 a5 11. Qc2 Qc7 12. Rad1 {[#] E69: King's Indian: Fianchetto: 6...Nbd7 7 0-0 e5 8 e4 c6 9 h3.} h5 $146 (12... b5 $14) ({Predecessor:} 12... b6 13. Rfe1 Bb7 14. b3 Rad8 15. Qc1 exd4 16. Nxd4 Nc5 17. Bh6 d5 18. Bxg7 Kxg7 19. cxd5 cxd5 20. Nxd5 {½-½ (20) Laylo,D (2428)-Nguyen,N (2641) Ha Long 2022}) 13. c5 (13. Ng5 $16) 13... exd4 ({Better is} 13... d5 $14) 14. cxd6 $18 {White is clearly better.} (14. Bxd4 $6 Nxc5 15. e5 Bf5 $11) 14... Qxd6 15. Nxd4 {[%cal Od4f5]} Qc7 (15... Qe7 $16) 16. Ncb5 Qb8 $16 17. Bf4 Ne5 18. Nf3 $36 {[%mdl 2048] White is in control.} Nfd7 (18... cxb5 $2 19. Nxe5 Rxe5 20. Rd8+ (20. Bxe5 Qxe5 21. Rd8+ Bf8 $18) 20... Kh7 21. Rc1 $18 (21. Bxe5 Qxe5 22. Rxc8 Rxc8 $18)) ({Black should try} 18... Bxh3 19. Bxe5 Rxe5 20. Nxe5 (20. Bxh3 Rxb5 21. e5 Ng4 $17) 20... Qxe5 21. Bxh3 Qxb5) 19. Nd6 {White has more active pieces.} Rf8 (19... Re7 $16) 20. Ng5 Qa7 $2 {[#]} (20... a4 {was necessary.} 21. Rd2 Qc7) 21. Be3 $18 Qb8 (21... b6 {keeps fighting.} 22. f4 Ba6) 22. f4 {[%cal Bf2f4,Bf4f5][%mdl 32]} f6 23. Ne6 Nf7 24. Nxf8 Nxf8 25. Nxf7 Kxf7 26. f5 Kg8 27. Bf4 {Against Qc7} Qa7+ 28. Kh2 g5 29. Bd6 Nd7 30. Qb3+ Kh8 31. Qf7 h4 32. gxh4 gxh4 33. Bf4 {Weighted Error Value: White=0.13 (very precise) /Black=1.05} (33. Rf4 $142 Qe3 34. Rxh4+ Qh6 35. Rxh6+ Bxh6 36. Be7 Bg7 37. e5 Nxe5 38. Qh5+ Kg8 39. Rd8+ Bf8 40. Rxf8+ Kg7 41. Qh8#) 1-0

[Event "Benidorm Open-A 2022"]
[Site "Benidorm"]
[Date "2022.12.06"]
[Round "4.26"]
[White "Gil Lopez, Alejandro"]
[Black "Garcia Callejo, Jesus"]
[Result "1-0"]
[ECO "B01"]
[WhiteElo "2041"]
[BlackElo "2140"]
[Annotator "TA"]
[PlyCount "126"]
[EventDate "2022.12.03"]
[EventType "swiss"]
[EventCountry "ESP"]
[SourceTitle "playchess.com"]
[Source "ChessBase"]
[SourceQuality "1"]
[TimeControl "5400+30"]

{[%evp 9,126,0,12,9,18,22,15,2,12,0,10,0,0,0,0,-17,0,0,24,25,31,14,19,7,7,7,7,-10,0,0,0,0,12,7,30,30,26,16,20,22,20,20,45,-74,-87,-79,-29,-29,-22,-30,-31,-37,-37,-37,-37,-37,-37,-37,-41,-45,-46,-51,-19,-18,-29,-38,-25,-52,-47,-53,-40,-58,0,-6,-4,-8,0,-7,-6,-26,-26,-20,-6,-10,-10,-29,-13,-22,0,0,0,0,0,0,0,0,0,0,0,0,0,0,0,0,0,-8,-8,-8,33,24,5097,4915,2146,1982,2177,1860,1944,1572,1035]} 1. e4 d5 2. exd5 Qxd5 3. Nc3 Qd6 4. Bc4 Nf6 5. h3 Nc6 6. Nf3 {B01: Scandinavian Defence.} Bf5 7. d3 a6 8. a3 {The position is equal.} e6 9. Be3 Be7 10. Qd2 {[#]} b5 $146 ({Predecessor:} 10... Na5 11. Ba2 Qd8 12. b4 Nc6 13. Bb3 b5 14. O-O h6 15. Ne2 Bd6 16. Nfd4 Nxd4 17. Nxd4 {½-½ (62) Azjargal,E-Boeru,D (1109) Pattaya 2015}) 11. Bb3 Rd8 12. Ne2 e5 13. Ng3 Bg6 14. Nh4 {[#] Black must now prevent Ngf5.} Qd7 {Inhibits Ngf5.} 15. Nxg6 (15. O-O {looks sharper.} O-O 16. Rfd1 Ne4 17. Nxe4 Bxh4 18. Nc5) 15... hxg6 16. Rd1 Nd4 17. Bxd4 exd4 18. Qf4 Bd6 19. Qf3 O-O 20. O-O c5 21. Rfe1 Qc7 22. Ne4 Nxe4 23. Rxe4 c4 24. dxc4 bxc4 25. Ba2 Be5 26. Rxe5 Qxe5 $17 27. Bxc4 a5 ({Black should play} 27... d3 $17 28. Rxd3 Rxd3 29. Qxd3 Qxb2 30. Bxa6 Qa1+ 31. Kh2 Qf6) 28. b3 $11 Qc5 29. a4 Qf5 30. Qxf5 gxf5 $15 {[%mdl 4096] Endgame KRR-KRB} 31. Bb5 Rd6 32. Kf1 Rc8 33. Rd2 g6 34. Ke2 Kg7 35. Bc4 f6 36. Kd3 Re8 37. Bb5 Re7 38. Kc4 {[%cal Oc4c5]} Rc7+ 39. Kd3 Rc3+ 40. Ke2 f4 (40... Rd5 $15) 41. Bd3 $1 $11 g5 42. Kf3 Re6 43. Kg4 Re5 44. Bf5 Rcc5 45. Bd3 Rcd5 46. Bc4 Rd6 47. Bd3 Kh6 48. h4 Rdd5 49. hxg5+ fxg5 50. Rd1 Kg7 51. Rh1 Rc5 52. Rh7+ Kf8 53. Rd7 Rcd5 54. Rxd5 Rxd5 {KR-KB} 55. Bf5 $1 Ke7 {Hoping for ...Kf6.} 56. Kxg5 f3 57. g4 {[%cal Bg2g4,Bg4g5,Bg5g6,Bg6g7][%mdl 32] [#] aiming for Kf4.} d3 $1 58. cxd3 Rd4 59. Be4 Kd6 $2 {[%mdl 8192] This costs Black the game.} (59... Rb4 $11) 60. Kf6 $18 {White is clearly winning.} ({Worse is} 60. Bxf3 Rxd3 61. Be4 Rxb3 $11) 60... Kc5 61. g5 {Threatens to win with g6.} (61. Bxf3 Rf4+ 62. Ke5 Rxf3 63. d4+ Kc6 64. d5+ Kc5 $19) 61... Rb4 62. g6 ({Inferior is} 62. Bxf3 Rf4+ 63. Ke6 Rxf3 $11) 62... Rxb3 63. g7 Rb8 {Inhibits g8Q.   Weighted Error Value: White=0.08 (flawless) /Black=0.10 (very precise)} 1-0

[Event "Benidorm Open-A 2022"]
[Site "Benidorm"]
[Date "2022.12.06"]
[Round "4.27"]
[White "Rodriguez Garcia, Manuel Francisco"]
[Black "Parramon Ros, Francesc"]
[Result "1-0"]
[ECO "A36"]
[WhiteElo "2135"]
[BlackElo "2003"]
[Annotator "TA"]
[PlyCount "127"]
[EventDate "2022.12.03"]
[EventType "swiss"]
[EventCountry "ESP"]
[SourceTitle "playchess.com"]
[Source "ChessBase"]
[SourceQuality "1"]
[TimeControl "5400+30"]

{[%evp 18,127,20,15,15,15,40,26,39,46,44,35,61,53,64,56,64,66,86,96,84,84,85,85,94,86,94,88,92,93,107,85,109,102,113,89,110,94,105,81,89,75,80,40,47,51,81,0,0,0,82,82,81,-24,76,62,62,33,74,1,68,68,147,143,199,197,163,67,74,52,132,139,264,251,242,260,246,253,253,237,255,246,239,176,174,121,127,128,100,100,643,628,590,392,390,332,329,263,360,335,891,893,795,859,1038,1022,5134,5089,5683,4947,29983,29984]} 1. c4 c5 2. Nc3 Nc6 3. g3 g6 4. Bg2 Bg7 5. a3 d6 6. Rb1 a5 7. d3 e6 8. e4 Nge7 9. Nge2 O-O 10. O-O b6 {A36: Symmetrical English vs ...g6: 4 Bg2 Bg7.} 11. Nb5 e5 {[#]} 12. Nec3 $146 ({Predecessor:} 12. f4 f5 13. Nec3 Kh8 14. fxe5 dxe5 15. Bg5 Qd7 16. Bxe7 Qxe7 17. exf5 Qe8 18. fxg6 Qxg6 19. Rxf8+ Bxf8 {1-0 (24) Lomsadze,D (2272)-Orazov,B Acri 2006}) 12... Nd4 {White has an edge.} 13. Nxd4 cxd4 14. Nb5 Nc6 15. Bd2 Na7 16. a4 Nxb5 17. axb5 f6 18. Ra1 Rb8 19. b4 axb4 20. Bxb4 Rf7 21. Qb3 Bf8 22. Ra4 Kg7 23. Rfa1 Rfb7 24. Ra8 Bd7 25. R8a6 {White is much more active. The black rooks are badly placed.} Qc7 26. R1a4 Be7 27. Qa3 Bc8 28. h4 g5 29. hxg5 fxg5 30. Qc1 Qd7 31. Ra1 (31. Ra8 {keeps more tension.} Rxa8 32. Rxa8 g4 33. Qa1) 31... Qg4 32. Qd1 (32. Ra8 $16) 32... Qxd1+ $11 33. Rxd1 g4 (33... d5 $1 $11 34. Bxe7 Rxe7 35. exd5 Bxa6) 34. Rda1 $36 {[%mdl 2048] White has strong initiative.} Kf7 {[%cal Od6d5]} 35. Rf1 (35. R6a3 $16) 35... Be6 (35... d5 $1 $11 {keeps the balance.} 36. Bxe7 Rxe7 37. exd5 Bxa6) 36. f4 gxf3 37. Rxf3+ (37. Bxf3 $5 {[%cal Rf3g4]} Kg6 38. Ra2 $16) 37... Ke8 38. Kh2 (38. Rf1 $16) 38... Kd7 (38... Bg4 $11) 39. Bh3 $1 $14 Rg8 (39... Bxh3 $14 40. Kxh3 Ke6) 40. Rf7 $16 Rf8 (40... Bxh3 $16 41. Kxh3 Rh8) 41. Rxf8 $18 Bxf8 42. Ra8 ({Better is} 42. Bf5 $18) 42... Be7 $14 43. Bd2 Bxh3 (43... h5 $1 $14) 44. Kxh3 {[%mdl 4096] Endgame KRB-KRB} Ke6 (44... h5 $16 45. Rh8 Rc7) 45. Bh6 $18 Bf6 46. g4 Rf7 47. Rb8 Be7 {[#]} 48. Kg2 {Inhibits Rf3.} Bh4 49. Rxb6 Rf2+ 50. Kh3 Bd8 51. Rb8 (51. Ra6 $18) 51... Kd7 $16 {Against c5} 52. Kg3 {Inhibits Rf3+.} Rc2 53. Rb7+ Kc8 $2 {[%mdl 8192] A mistake that costs the game.} (53... Ke6 $16) 54. Rxh7 $18 Rc3 55. g5 Rxd3+ 56. Kg4 {[#] Black must now prevent g6.} Rd1 57. Rf7 {Hoping for g6.} Rg1+ 58. Kf5 {Strongly threatening g6.} Rf1+ $2 (58... Rh1) 59. Ke6 Rg1 60. Rf3 ({Less strong is} 60. Kxd6 d3 61. Rf2 (61. Kxe5 $2 {too greedy.} d2 $19) 61... Ba5 $16) 60... Rg4 61. Kxd6 Rxe4 62. g6 {[%cal Bg5g6,Bg6g7][%mdl 32] Intending Rf8 and mate.} Rg4 63. g7 {Rf8 would kill now.} e4 64. Rf8 {Weighted Error Value: White=0.19 (very precise) /Black=0.50} 1-0

[Event "Benidorm Open-A 2022"]
[Site "Benidorm"]
[Date "2022.12.06"]
[Round "4.28"]
[White "Minana Menor, Antonio"]
[Black "Draghici Flutur, Gavril"]
[Result "0-1"]
[ECO "B56"]
[WhiteElo "2102"]
[BlackElo "2012"]
[Annotator "TA"]
[PlyCount "74"]
[EventDate "2022.12.03"]
[EventType "swiss"]
[EventCountry "ESP"]
[SourceTitle "playchess.com"]
[Source "ChessBase"]
[SourceQuality "1"]
[TimeControl "5400+30"]

{[%evp 20,73,17,23,44,15,18,0,-22,-7,9,0,4,-18,-2,-20,0,0,17,4,36,-327,-320,-332,-327,-450,-456,-440,-362,-360,-343,-344,-322,-416,-362,-524,-516,-533,-456,-460,-473,-473,-461,-469,-457,-729,-498,-711,-709,-698,-689,-5693,-2131,-5314,-5314,-29999]} 1. e4 c5 2. Nf3 d6 3. d4 Nf6 4. Nc3 cxd4 5. Nxd4 Nc6 6. f3 e5 7. Nb3 Be7 8. Be3 O-O 9. Qd2 a5 10. Bb5 Be6 11. O-O-O {is currently scoring better than 11.Rd1.} Qc7 {B56: Classical Sicilian: Unusual Lines.} (11... Na7 {simplifies} 12. Bxa7 Rxa7 13. Kb1 Ra8) 12. g4 (12. Kb1 {simplifies} Na7 13. Bxa7 Rxa7 14. a4) 12... Nb4 {[#] Threatens to win with ...d5.} 13. Kb1 $146 (13. g5 $5 {[%cal Rg5f6]} Nd7 14. a3 $11) ({Predecessor:} 13. g5 Nh5 14. Kb1 a4 15. Nxa4 Rxa4 16. Bxa4 Nxa2 17. Qa5 Qxa5 18. Nxa5 Ra8 19. Bd2 {½-½ (50) Cechura,P (2128)-Svatos,J (2256) Czech Republic 2005}) 13... d5 $1 {The position is equal.} 14. g5 $132 {[%mdl 2048] Prevents a4. White is fighting back} d4 (14... Nxe4 {is more complex.} 15. fxe4 a4 16. Bxa4 d4) 15. gxf6 Bxf6 16. Bxd4 Rfd8 17. Bxe5 Bxe5 18. Qe3 Rxd1+ (18... Bxh2 19. a3 Bf4 20. Qe2 $14) 19. Rxd1 a4 (19... Bxc3 $5 20. Qxc3 (20. bxc3 Nxa2 21. Kxa2 a4 $15) 20... Qxh2 $11) 20. Nc5 {[%mdl 8192] [#] This costs White the game.} (20. Nxa4 $2 Qxc2+ 21. Ka1 Bxb2+ 22. Nxb2 Rxa2#) (20. Nd4 $1 $14 {was the only good move.}) 20... Qb6 $1 $19 21. Bxa4 Na6 {[%cal Bb4a6,Ba6c5,Bc5e4][%mdl 32]} (21... Bxh2 $2 22. Qd4 Nc6 23. Bxc6 Qxc6 {[#]} 24. Nxb7 $1 $18 {[%mdl 512]}) 22. f4 Bxc3 ({Weaker is} 22... Qxc5 23. Qxc5 Nxc5 24. fxe5 $16) (22... Nxc5 $2 23. fxe5 Nxa4 24. Qxb6 Nxb6 25. Nd5 $19) 23. Qxc3 {Hoping for Nxe6.} Nxc5 (23... Qxc5 $2 {loses.} 24. Qd4 $19) 24. Bb3 Bxb3 (24... Nxe4 $2 {too greedy.} 25. Qd4 Qxd4 26. Rxd4 Bxb3 27. axb3 $19) 25. cxb3 Nxe4 26. Qe5 Nf6 27. a3 (27. Qd6 {might work better.} Qe3 28. Qd4) 27... Qxb3 28. Rg1 Re8 29. Qg5 {[%csl Gg1][%cal Rg5g7]} Qd3+ 30. Ka1 {[%csl Gg1][%cal Rg5g7]} Qg6 31. Qc5 Qh6 32. Qf5 (32. Qg5 $142 Qg6 33. Qc5) 32... Ne4 33. Rg2 (33. Rd1 $142 Qb6 34. Qd7) 33... Qc6 34. Qg4 g6 {( -> ...Qc1+)} 35. f5 Qc1+ 36. Ka2 Nd2 {[%csl Gd2][%cal Rc1b1]} 37. fxg6 Qb1# {Weighted Error Value: White=0.82/Black=0.26 (precise)} 0-1

[Event "Benidorm Open-A 2022"]
[Site "Benidorm"]
[Date "2022.12.06"]
[Round "4.29"]
[White "Gavarrete, Nahun"]
[Black "Clemente Llamero, Roberto"]
[Result "1-0"]
[ECO "A15"]
[WhiteElo "2308"]
[BlackElo "1955"]
[Annotator "TA"]
[PlyCount "54"]
[EventDate "2022.12.03"]
[EventType "swiss"]
[EventCountry "ESP"]
[SourceTitle "playchess.com"]
[Source "ChessBase"]
[SourceQuality "1"]
[TimeControl "5400+30"]

{[%evp 9,54,16,12,15,16,0,0,0,8,14,16,24,37,17,41,21,22,17,48,0,0,-6,0,-14,-11,-27,-27,-44,-17,-19,-6,-15,-10,-33,0,0,0,0,0,-26,0,0,18,-203,-207,-304,-178]} 1. Nf3 Nf6 2. c4 e6 3. Nc3 d5 4. e3 dxc4 5. Bxc4 a6 6. a4 {A17: English Opening: 1...Nf6 with ...Bb4.} b6 7. O-O Bb7 {Against e4} 8. d4 {[%cal Oe3e4] The position is equal.} Bb4 {Against e4} 9. Qe2 O-O 10. Rd1 Qe7 11. Bd3 {11.Ne5 is not played anymore.} Nbd7 (11... c5 {with more complications.} 12. e4 cxd4 13. e5 dxc3 14. exf6 Qxf6 15. Be4 Bxe4 16. Qxe4 cxb2 17. Bxb2 Qxb2 18. Ng5 g6) 12. e4 {White wants to play e5.} e5 13. d5 c6 {[%cal Rc6d5]} 14. dxc6 (14. Bc4 $14 {feels stronger.}) 14... Bxc6 $11 15. Bg5 h6 (15... Nc5 {looks sharper.} 16. Nh4 g6 17. Qf3 Kg7) 16. Bh4 {[#]} Rfe8 $146 ({Predecessor:} 16... Bxc3 17. bxc3 Nc5 18. Bc2 Qe6 19. a5 Nfxe4 20. Bxe4 Nxe4 21. Qe3 b5 22. Bg3 Nxg3 23. hxg3 {½-½ (87) Nazaretyan,T (2316)-Ingunza Curro,A (2367) Chess.com INT 2022}) 17. Bxf6 Nxf6 18. Nd2 Qb7 19. Nc4 Bc5 20. Rac1 a5 21. Bc2 b5 22. Nd6 Bxd6 23. Rxd6 b4 24. Nd5 Nxd5 25. exd5 Bd7 26. Qd3 $2 {[#]} (26. Bb3 $11 {and White is okay.}) 26... e4 $19 27. Qg3 (27. Qe2 $142 Qc7 28. Rxd7 Qxd7 29. Bb3) 27... Qc7 {[%mdl 32768] Weighted Error Value: White=0.29 (precise) /Black=0.10 (very precise) . Loss on time!?} (27... Rac8 $142 28. Qe3 Qc7) 1-0

[Event "Benidorm Open-A 2022"]
[Site "Benidorm"]
[Date "2022.12.06"]
[Round "4.30"]
[White "Rodriguez Melendez, Juan Humbert"]
[Black "O`Neill Y Daneiko, Jose Antonio"]
[Result "1/2-1/2"]
[ECO "C50"]
[WhiteElo "2157"]
[BlackElo "1961"]
[Annotator "TA"]
[PlyCount "60"]
[EventDate "2022.12.03"]
[EventType "swiss"]
[EventCountry "ESP"]
[SourceTitle "playchess.com"]
[Source "ChessBase"]
[SourceQuality "1"]
[TimeControl "5400+30"]

{[%evp 11,60,24,24,11,17,8,16,14,3,-7,-19,-21,-18,-21,-11,-51,0,0,0,-33,-33,-41,-37,-46,-44,-44,-38,-73,-73,-70,-68,-63,-37,-43,-30,-47,-36,-51,-35,-30,-31,-39,-18,-185,13,-6,2,-8,-10,-21,0]} 1. e4 e5 2. Nf3 Nc6 3. Bc4 Nf6 4. d3 {[%cal Bd2d3,Bd3d4][%mdl 32]} Bc5 5. O-O d6 6. c3 a6 7. h3 {C54: Giuoco Piano: 4 c3 Nf6, main lines with 5 d4 and 5 d3.} h6 8. d4 {Recently 8.a4 got a lot of attention.} Ba7 9. Re1 (9. dxe5 {simplifies} Nxe5 10. Nxe5 dxe5 11. Qxd8+ Kxd8 12. Nd2) 9... O-O 10. Bb3 Re8 11. d5 Ne7 {[%cal Bc6e7,Be7g6,Bg6h4,Bh4f3][%mdl 32] [#]} 12. Nbd2 $146 ({Predecessor:} 12. Nh4 g5 13. Qf3 Kg7 14. Nf5+ Nxf5 15. exf5 e4 16. Qe2 Bxf5 17. Be3 Bxe3 18. Qxe3 {0-1 (25) Hasnul,H (1398)-Mohd Saprin,A (1953) Penang 2019}) 12... Ng6 13. Nf1 Nh5 ({Black should play} 13... c6 $15) 14. Be3 $11 Bxe3 15. fxe3 Nh4 16. g4 {Prevents f5.} Nxf3+ 17. Qxf3 Nf6 18. Ng3 Nh7 {And now ...Qh4 would win.} 19. Rf1 Rf8 {White must now prevent ...Qh4.} 20. Rf2 Qh4 {[#] Hoping for ...Ng5.} 21. Rh2 $1 Bd7 22. Kg2 Rae8 23. Qf2 g6 24. Rf1 Qe7 25. Bc2 Kg7 (25... Rb8 {simplifies} 26. Bd1 Qh4 27. Ne2 Qxf2+ 28. Rxf2 Kg7) 26. Kg1 Rg8 27. Rg2 $2 {[#]} (27. a4 $11) 27... f6 $2 (27... h5 $1 $19 {aiming for ...Ng5.} 28. h4 (28. gxh5 $2 {perishes.} Ng5 $19) 28... hxg4) 28. Bd3 {The position is equal.} Ref8 {[%cal Oh6h5]} 29. Kh2 Kh8 30. Ne2 Qg7 {Weighted Error Value: White=0.20 (precise) /Black=0.14 (very precise)} 1/2-1/2

[Event "Benidorm Open-A 2022"]
[Site "Benidorm"]
[Date "2022.12.06"]
[Round "4.31"]
[White "Horcajada Reales, Guillermo"]
[Black "Sanroman Costas, Mauro"]
[Result "1/2-1/2"]
[ECO "A10"]
[WhiteElo "2081"]
[BlackElo "2123"]
[Annotator "TA"]
[PlyCount "128"]
[EventDate "2022.12.03"]
[EventType "swiss"]
[EventCountry "ESP"]
[SourceTitle "playchess.com"]
[Source "ChessBase"]
[SourceQuality "1"]
[TimeControl "5400+30"]

{[%evp 9,128,62,77,52,64,57,75,41,57,54,101,90,92,93,102,106,127,108,114,110,127,108,132,114,115,108,115,110,93,95,98,72,65,22,16,14,19,15,29,-35,-24,-32,-28,-49,-42,-51,-52,-52,-6,-81,-26,0,0,0,16,-28,0,0,0,0,0,-46,-56,-494,-276,-313,-282,-272,0,0,0,0,0,0,0,0,0,0,74,81,159,171,155,0,0,0,0,0,0,0,0,0,-8,-80,-80,-546,0,0,0,0,0,0,0,0,0,0,0,0,0,0,0,0,0,0,0,0,0,0,0,0,0]} 1. c4 b6 2. Nc3 e6 3. e4 Bb7 4. Nge2 Be7 {[#]} 5. d4 $146 ({Predecessor:} 5. g3 f5 6. Bg2 Nf6 7. d3 O-O 8. O-O fxe4 9. dxe4 Nc6 10. h3 e5 11. Nd5 Bc5 12. Bg5 {½-½ (46) Berry,N (2308)-Wilson,A (2042) England 2012}) 5... d6 6. Be3 {A10: English Opening: Unusual Replies for Black.} Nd7 7. f3 a6 8. Qd2 {White is better.} c5 9. d5 e5 (9... Ne5 $14) 10. a4 Bc8 11. g3 {White is more active.} h5 12. h4 Ndf6 13. Ng1 {[%cal Be2g1,Bg1h3,Bh3g5][%mdl 32]} Bd7 14. Nh3 Rb8 15. Ng5 Nh6 16. Bh3 Bxh3 17. Rxh3 Qd7 18. Rh2 O-O 19. Nh3 Kh7 20. Bxh6 gxh6 21. Nd1 Ne8 22. Ne3 Ng7 {Prevents Nf5.} 23. Qc2 Kh8 24. Nf5 (24. Kf2 $11) 24... Nxf5 $15 25. exf5 Rg8 {Inhibits g4.} 26. Kf2 b5 27. cxb5 axb5 28. a5 c4 (28... Ra8 $15) 29. Qe4 (29. Rg2 $11) 29... Qa7+ (29... Bd8 $17 30. Kg2 Ra8) 30. Kg2 $11 Rg7 $36 {[%mdl 2048] [#] White must now prevent ...Rbg8. White is under pressure.} 31. Nf2 f6 (31... Rbg8 $5 {[%cal Rg7g3]} 32. Rh3 Ra8 $11) 32. g4 Qc5 33. Kh3 Rbg8 34. Rg2 Bd8 $1 35. Rag1 (35. a6 $11 {might be stronger.}) 35... Bxa5 $15 36. f4 $2 {[%mdl 8192]} (36. Qe2 $15) 36... Bb6 (36... hxg4+ $142 37. Nxg4 Qd4) 37. fxe5 $19 dxe5 38. g5 Qe3+ $2 (38... fxg5 $19 39. hxg5 hxg5) 39. Qxe3 $11 Bxe3 40. gxf6 Rxg2 41. Rxg2 Bxf2 42. Rxf2 {[%mdl 4096] Endgame KR-KR} Rf8 43. Re2 Rxf6 (43... Kg8 $11 {keeps the balance.}) 44. Rxe5 $16 Kg7 (44... b4 $142) 45. Kg3 Ra6 {[#]} 46. d6 $2 ({Wrong is} 46. Re6 $2 Rxe6 47. fxe6 b4 $19) (46. Kf4 $1 $16) 46... Rxd6 $11 47. Rxb5 Kf6 48. Rc5 Rd1 49. Rc6+ Kxf5 50. Rxh6 Rd3+ 51. Kg2 (51. Kf2 $11) 51... Kg4 $17 {aiming for ...Rd2+.} 52. Re6 $2 {[%mdl 8192]} (52. Rg6+ $17 Kxh4 53. Re6) 52... Rg3+ $2 ({Worse is} 52... Kxh4 53. Re4+ Kg5 54. Rxc4 $11) (52... Rd2+ $19 53. Kg1 Rxb2 54. Re4+ Kg3 55. Re3+ Kf4) 53. Kf2 $11 {Intending Rg6+ and mate. The position is equal.} Rb3 54. Re4+ Kh3 55. Rxc4 Rxb2+ 56. Ke3 Rb5 57. Ra4 Re5+ 58. Re4 Rf5 59. Ra4 Rf1 60. Ke2 Rf8 61. Ke3 Re8+ 62. Re4 Ra8 63. Rb4 Ra1 64. Ke2 Ra2+ {What a fight!   Weighted Error Value: White=0.41/Black=0.35} 1/2-1/2